bitfinex/quotes_BTCUSD_20240826
["timestamp","ask_amount","ask_price","bid_price","bid_amount"]
[1724656242510,0.21630861,63735.0,63734.0,0.183902]
[1724656242511,0.00090861,63735.0,63734.0,0.183902]
[1724656242727,0.00581201,63735.0,63734.0,0.026]
[1724656242932,0.00090861,63735.0,63734.0,0.026]
[1724656243134,0.00581201,63735.0,63734.0,0.182902]
[1724656243339,0.00090861,63735.0,63734.0,0.187902]
[1724656243541,0.00581201,63735.0,63734.0,0.583261]
[1724656243963,0.00581201,63735.0,63734.0,0.580261]
[1724656244209,0.00090861,63735.0,63734.0,0.91703901]
[1724656244641,0.00090861,63735.0,63734.0,0.91203901]
[1724656244846,0.15780761,63735.0,63734.0,0.104555]
[1724656245057,0.37750761,63735.0,63734.0,0.029]
[1724656245259,0.22060861,63735.0,63734.0,0.026]
[1724656245459,0.22552358,63735.0,63734.0,0.026]
[1724656245697,0.22552358,63735.0,63734.0,0.027]
[1724656245896,0.22552358,63735.0,63734.0,0.023]
[1724656246097,0.00582358,63735.0,63734.0,0.1982924]
[1724656246212,0.00682358,63735.0,63734.0,0.2012924]
[1724656246629,0.00582358,63735.0,63734.0,0.0443904]
[1724656246871,0.00582358,63735.0,63734.0,1.37431612]
[1724656247071,0.00090861,63735.0,63734.0,1.37131612]
[1724656247472,0.00190861,63735.0,63734.0,1.37131612]
[1724656247650,0.00190861,63735.0,63734.0,1.68512012]
[1724656247851,0.00090861,63735.0,63734.0,1.68198241]
[1724656248065,0.00390861,63735.0,63734.0,1.68198241]
[1724656248404,0.00190861,63735.0,63734.0,1.68898241]
[1724656248731,0.00090861,63735.0,63734.0,1.72943283]
[1724656249072,0.00190861,63735.0,63734.0,1.73943283]
[1724656249461,0.00190861,63735.0,63734.0,1.74043283]
[1724656250613,0.00190861,63735.0,63734.0,1.74043283]
[1724656251726,0.00190861,63735.0,63734.0,1.70198241]
[1724656253074,0.00190861,63735.0,63734.0,1.70298241]
[1724656255689,0.00190861,63735.0,63734.0,1.74043283]
[1724656255892,0.00190861,63735.0,63734.0,1.70298241]
[1724656256732,0.00190861,63735.0,63734.0,1.74043283]
[1724656256971,0.00190861,63735.0,63734.0,2.05423683]
[1724656257302,0.00190861,63735.0,63734.0,2.01678641]
[1724656257703,0.00090861,63735.0,63734.0,2.00678641]
[1724656258153,0.00090751,63738.0,63737.0,1.099261]
[1724656258383,0.00090751,63738.0,63737.0,2.02433925]
[1724656258963,0.00090751,63738.0,63737.0,2.33812825]
[1724656259918,0.00090751,63738.0,63737.0,2.03833925]
[1724656260771,0.00090751,63738.0,63737.0,1.33755025]
[1724656260970,0.22400751,63738.0,63737.0,0.7826618]
[1724656261312,0.00433955,63738.0,63737.0,0.64086101]
[1724656261512,0.00433955,63738.0,63737.0,1.25443901]
[1724656261772,0.00090751,63738.0,63737.0,1.96702801]
[1724656262354,0.00090751,63738.0,63737.0,2.00402801]
[1724656262507,0.00090751,63738.0,63737.0,2.20402801]
[1724656262710,0.00090751,63738.0,63737.0,2.19002801]
[1724656263122,0.00090751,63738.0,63737.0,2.20402801]
[1724656263341,0.00090751,63738.0,63737.0,2.19002801]
[1724656263537,0.00090751,63738.0,63737.0,2.20302801]
[1724656264236,0.00090751,63738.0,63737.0,2.19002801]
[1724656264440,0.00090751,63738.0,63737.0,2.20402801]
[1724656264588,0.00090751,63738.0,63737.0,2.19002801]
[1724656264793,0.00907501,63754.0,63749.0,1.099055]
[1724656264992,0.00907501,63754.0,63749.0,1.49633246]
[1724656265197,0.1749,63751.0,63749.0,0.62677301]
[1724656265520,0.18397501,63754.0,63749.0,1.06592831]
[1724656265736,0.00907501,63754.0,63749.0,1.37965831]
[1724656266405,0.00907501,63754.0,63749.0,1.39265831]
[1724656266634,0.00907501,63754.0,63749.0,1.11392831]
[1724656267857,0.22,63751.0,63749.0,0.32960331]
[1724656268093,0.52646951,63750.0,63749.0,0.18117801]
[1724656268330,0.36960751,63750.0,63749.0,0.025]
[1724656268783,0.52646951,63750.0,63749.0,0.025]
[1724656268980,0.36960751,63750.0,63749.0,0.025]
[1724656269114,0.36960751,63750.0,63749.0,0.0301871]
[1724656269564,0.36960751,63750.0,63749.0,0.0181871]
[1724656269926,0.36960751,63750.0,63749.0,0.0201871]
[1724656270486,0.36960751,63750.0,63749.0,0.1990521]
[1724656270764,0.36960751,63750.0,63749.0,0.66996011]
[1724656270932,0.00090751,63750.0,63749.0,0.98369011]
[1724656271449,0.00090751,63750.0,63749.0,0.98169011]
[1724656271690,0.00090751,63750.0,63749.0,0.98469011]
[1724656271913,0.00090751,63750.0,63749.0,0.98369011]
[1724656272351,0.00090751,63750.0,63749.0,0.98769011]
[1724656272552,0.00090751,63750.0,63749.0,0.98369011]
[1724656272965,0.00090751,63750.0,63749.0,0.98769011]
[1724656273489,0.00090751,63750.0,63749.0,0.98169011]
[1724656273825,0.00090751,63750.0,63749.0,0.98469011]
[1724656274951,0.00090751,63750.0,63749.0,1.16099011]
[1724656275156,0.00090751,63750.0,63749.0,0.98869011]
[1724656276148,0.00090751,63750.0,63749.0,0.99469011]
[1724656276922,0.00090751,63750.0,63749.0,0.98769011]
[1724656277270,0.00090751,63750.0,63749.0,0.98169011]
[1724656277473,0.00090751,63750.0,63749.0,0.99269011]
[1724656278267,0.00090751,63750.0,63749.0,1.00469011]
[1724656279152,0.00090751,63750.0,63749.0,1.31842011]
[1724656279921,0.00090751,63750.0,63749.0,1.29542011]
[1724656280990,0.00090751,63750.0,63749.0,1.30742011]
[1724656281566,0.00090751,63750.0,63749.0,1.32042011]
[1724656283762,0.00090751,63750.0,63749.0,0.025]
[1724656283763,1.16731951,63750.0,63749.0,0.025]
[1724656283960,1.48104451,63750.0,63749.0,0.025]
[1724656284167,1.16731951,63750.0,63749.0,0.025]
[1724656284945,1.16731951,63750.0,63749.0,0.012]
[1724656285146,0.156883,63742.0,63738.0,0.000825]
[1724656285347,0.2183,63740.0,63739.0,0.0158544]
[1724656285550,0.2183,63740.0,63739.0,0.0388544]
[1724656285753,0.536487,63740.0,63739.0,0.0158544]
[1724656286583,0.3796,63740.0,63739.0,0.0248544]
[1724656289674,1.164035,63740.0,63739.0,0.0248544]
[1724656289838,1.164035,63740.0,63739.0,0.009]
[1724656290041,0.470668,63739.0,63738.0,0.000825]
[1724656290276,0.841968,63739.0,63738.0,0.000825]
[1724656290913,0.528189,63739.0,63738.0,0.000825]
[1724656291114,0.841968,63739.0,63738.0,0.000825]
[1724656292321,0.3713,63739.0,63738.0,0.000825]
[1724656292581,0.3713,63739.0,63738.0,0.0166796]
[1724656292816,0.37111116,63739.0,63738.0,0.0166796]
[1724656293298,0.52800016,63739.0,63738.0,0.0166796]
[1724656298177,0.37111116,63739.0,63738.0,0.0166796]
[1724656300131,0.3726,63744.0,63738.0,0.0166796]
[1724656300340,0.3757,63749.0,63748.0,0.156867]
[1724656300564,0.3757,63749.0,63748.0,1.01895201]
[1724656300758,0.00907501,63754.0,63749.0,0.470595]
[1724656300990,0.00907501,63754.0,63749.0,1.14240301]
[1724656301197,0.00907501,63754.0,63749.0,1.47913301]
[1724656301391,0.00907501,63754.0,63749.0,1.5450326]
[1724656301732,0.00907501,63754.0,63749.0,1.0294026]
[1724656302551,0.00907501,63754.0,63749.0,1.0464026]
[1724656303128,0.00907501,63754.0,63749.0,1.0384026]
[1724656303486,0.00907501,63754.0,63749.0,1.0464026]
[1724656304093,0.00907501,63754.0,63749.0,1.2199026]
[1724656304763,0.00907501,63754.0,63749.0,1.4284026]
[1724656305120,0.00907501,63754.0,63749.0,1.7421326]
[1724656305297,0.00907501,63754.0,63749.0,1.7341326]
[1724656305504,0.00907501,63754.0,63749.0,1.7431326]
[1724656305943,0.00907501,63754.0,63749.0,1.7331326]
[1724656306166,0.00907501,63754.0,63749.0,1.7251326]
[1724656306364,0.00907501,63754.0,63749.0,1.7361326]
[1724656306569,0.00907501,63754.0,63749.0,1.7461326]
[1724656307322,0.00907501,63754.0,63749.0,1.7251326]
[1724656307512,0.00907501,63754.0,63749.0,1.7361326]
[1724656308827,0.00907501,63754.0,63749.0,1.7251326]
[1724656309166,0.00907501,63754.0,63749.0,1.7461326]
[1724656309371,0.00907501,63754.0,63749.0,1.7361326]
[1724656309772,0.00907501,63754.0,63749.0,1.7461326]
[1724656310015,0.00907501,63754.0,63749.0,1.7351326]
[1724656310216,0.00907501,63754.0,63749.0,1.4214026]
[1724656310431,0.00907501,63754.0,63749.0,1.4324026]
[1724656310642,0.00907501,63754.0,63749.0,1.4214026]
[1724656311223,0.00907501,63754.0,63749.0,1.7351326]
[1724656312085,0.00907501,63754.0,63749.0,1.4214026]
[1724656312308,0.00907501,63754.0,63749.0,1.4324026]
[1724656312515,0.00907501,63754.0,63749.0,1.4114026]
[1724656312745,0.00907501,63754.0,63749.0,1.7351326]
[1724656312951,0.00907501,63754.0,63749.0,1.7461326]
[1724656313154,0.00907501,63754.0,63749.0,1.7361326]
[1724656313330,0.00907501,63754.0,63749.0,1.7251326]
[1724656313598,0.00907501,63754.0,63749.0,1.7351326]
[1724656313779,0.00907501,63754.0,63749.0,0.7366726]
[1724656313975,0.00907501,63754.0,63749.0,0.7266726]
[1724656314175,0.00907501,63754.0,63749.0,0.7156726]
[1724656314963,0.00907501,63754.0,63749.0,1.0294026]
[1724656315509,0.00907501,63754.0,63749.0,0.7156726]
[1724656315711,0.00907501,63754.0,63749.0,0.7266726]
[1724656315916,0.00907501,63754.0,63749.0,0.7256726]
[1724656316153,0.00907501,63754.0,63749.0,0.4119426]
[1724656316385,0.21630751,63750.0,63749.0,0.7266726]
[1724656316639,0.21630751,63750.0,63749.0,0.7366726]
[1724656321368,0.00090751,63750.0,63749.0,0.7366726]
[1724656321594,0.00090751,63750.0,63749.0,0.9499726]
[1724656322271,0.00090751,63750.0,63749.0,1.2637026]
[1724656323296,0.00090751,63750.0,63749.0,1.0504026]
[1724656328046,0.21310751,63750.0,63749.0,1.0504026]
[1724656330347,0.38290751,63750.0,63749.0,1.0504026]
[1724656331786,0.00090751,63750.0,63749.0,1.0504026]
[1724656337594,0.21180751,63750.0,63749.0,1.0504026]
[1724656338293,0.21180751,63750.0,63749.0,1.13755891]
[1724656340915,0.21180751,63750.0,63749.0,1.45128891]
[1724656341137,0.00090751,63750.0,63749.0,1.45128891]
[1724656342825,0.00090751,63750.0,63749.0,1.9141244]
[1724656343874,0.00090751,63750.0,63749.0,2.2288544]
[1724656344730,0.00090751,63750.0,63749.0,2.32273284]
[1724656344950,0.00090751,63750.0,63749.0,2.2288544]
[1724656345157,0.00090751,63750.0,63749.0,2.32279847]
[1724656345411,0.00090751,63750.0,63749.0,2.2188544]
[1724656346029,0.00090751,63750.0,63749.0,2.35145393]
[1724656346439,0.00090751,63750.0,63749.0,2.36545393]
[1724656346873,0.00090751,63750.0,63749.0,2.66518393]
[1724656347077,0.00090751,63750.0,63749.0,2.67918393]
[1724656347292,0.00090751,63750.0,63749.0,2.66518393]
[1724656347507,0.00907501,63754.0,63753.0,1.612695]
[1724656347723,0.00907501,63754.0,63753.0,2.46500194]
[1724656348131,0.00907501,63754.0,63753.0,2.3475001]
[1724656348945,0.00907501,63754.0,63753.0,2.3615001]
[1724656349156,0.00907501,63754.0,63753.0,2.45545653]
[1724656349581,0.00907501,63754.0,63753.0,2.44596888]
[1724656349991,0.00907501,63754.0,63753.0,2.3755001]
[1724656350187,0.00907501,63754.0,63753.0,2.3615001]
[1724656350633,0.00907501,63754.0,63753.0,2.3755001]
[1724656350845,0.00907501,63754.0,63753.0,2.3615001]
[1724656351061,0.00907501,63754.0,63753.0,2.45545653]
[1724656352078,0.00907501,63754.0,63753.0,2.3615001]
[1724656352255,0.00907501,63754.0,63753.0,2.3755001]
[1724656352457,0.00907501,63754.0,63753.0,2.4084582]
[1724656352655,0.00907501,63754.0,63753.0,2.0452582]
[1724656352880,0.00907501,63754.0,63753.0,2.06593836]
[1724656353092,0.00907501,63754.0,63753.0,2.05193836]
[1724656353430,0.00907501,63754.0,63753.0,2.03793836]
[1724656353590,0.00907501,63754.0,63753.0,2.06593836]
[1724656354087,0.00907501,63754.0,63753.0,2.03793836]
[1724656354539,0.00907501,63754.0,63753.0,2.05193836]
[1724656355153,0.00907501,63754.0,63753.0,1.99098026]
[1724656355557,0.00907501,63754.0,63753.0,2.00498026]
[1724656357099,0.00907501,63754.0,63753.0,2.01898026]
[1724656357310,0.00907501,63754.0,63753.0,2.2367361]
[1724656357509,0.00907501,63754.0,63753.0,2.2227361]
[1724656358047,0.00907501,63754.0,63753.0,2.2367361]
[1724656361564,0.00907501,63754.0,63753.0,2.5944361]
[1724656361693,0.00907501,63754.0,63753.0,3.11194541]
[1724656365583,0.00907501,63754.0,63753.0,3.11193438]
[1724656366207,0.00907501,63754.0,63753.0,2.5766592]
[1724656366413,0.00907501,63754.0,63753.0,2.5486592]
[1724656366633,0.00907501,63754.0,63753.0,2.5766592]
[1724656367255,0.00907501,63754.0,63753.0,2.5626592]
[1724656367459,0.00907501,63754.0,63753.0,2.5486592]
[1724656367634,0.00907501,63754.0,63753.0,2.5626592]
[1724656367864,0.00907501,63754.0,63753.0,2.5766592]
[1724656368070,0.00907501,63754.0,63753.0,2.5486592]
[1724656369756,0.00907501,63754.0,63753.0,2.5766592]
[1724656371000,0.00907501,63754.0,63753.0,2.6236068]
[1724656371223,0.00907501,63754.0,63753.0,2.9772068]
[1724656372682,0.00907501,63754.0,63753.0,2.9632068]
[1724656372839,0.00907501,63754.0,63753.0,2.6096068]
[1724656373271,0.00907501,63754.0,63753.0,2.6236068]
[1724656373666,0.00907501,63754.0,63753.0,2.5766592]
[1724656374085,0.00907501,63754.0,63753.0,2.6236068]
[1724656378293,0.00859476,63754.0,63753.0,2.5766592]
[1724656379132,0.35899476,63754.0,63753.0,1.37137996]
[1724656379306,0.35899476,63754.0,63753.0,1.63812026]
[1724656380984,0.35899476,63754.0,63753.0,1.66112026]
[1724656381945,0.00859476,63754.0,63753.0,1.97583026]
[1724656382146,0.00859476,63754.0,63753.0,2.02279996]
[1724656382755,0.14596977,63757.0,63756.0,0.784237]
[1724656382995,0.14596977,63757.0,63756.0,1.68510903]
[1724656383394,0.21447501,63758.0,63757.0,0.470536]
[1724656383594,0.21447501,63758.0,63757.0,1.8467715]
[1724656383595,0.00907501,63758.0,63757.0,1.8467715]
[1724656384320,0.00907501,63758.0,63757.0,1.8937412]
[1724656384691,0.00907501,63758.0,63757.0,2.0009715]
[1724656384874,0.00907501,63758.0,63757.0,2.14226351]
[1724656385075,0.00888621,63758.0,63757.0,1.9410631]
[1724656385239,0.00888621,63758.0,63757.0,1.98807347]
[1724656385698,0.00888621,63758.0,63757.0,1.9550631]
[1724656386204,0.00888621,63758.0,63757.0,2.0254845]
[1724656386619,0.00888621,63758.0,63757.0,2.05518204]
[1724656387250,0.00888621,63758.0,63757.0,2.10220824]
[1724656387475,0.00888621,63758.0,63757.0,2.05618204]
[1724656387627,0.00888621,63758.0,63757.0,2.10320824]
[1724656388250,0.00888621,63758.0,63757.0,2.05618204]
[1724656388700,0.20768621,63758.0,63757.0,1.9690631]
[1724656388905,0.37308621,63758.0,63757.0,2.05618204]
[1724656389119,0.37308621,63758.0,63757.0,2.10322126]
[1724656389533,1.37308621,63758.0,63757.0,2.10322126]
[1724656389741,1.20768621,63758.0,63757.0,2.10322126]
[1724656389943,1.20768621,63758.0,63757.0,2.10323147]
[1724656390269,1.00888621,63758.0,63757.0,2.73927304]
[1724656390385,1.00888621,63758.0,63757.0,2.85686891]
[1724656391182,1.00888621,63758.0,63757.0,2.73927304]
[1724656392036,0.53595397,63758.0,63757.0,3.18352491]
[1724656392250,0.00090751,63759.0,63758.0,1.098901]
[1724656392462,0.00090751,63759.0,63758.0,4.9496785]
[1724656392667,0.009086,63763.0,63758.0,5.2633645]
[1724656392875,0.009086,63763.0,63761.0,1.048606]
[1724656393046,0.009086,63763.0,63761.0,1.6395905]
[1724656393274,0.009086,63763.0,63762.0,1.132765]
[1724656393447,0.009086,63763.0,63762.0,4.2196465]
[1724656393978,0.00090751,63782.0,63774.0,1.098624]
[1724656394111,0.00090751,63782.0,63774.0,1.96589182]
[1724656394892,0.00090751,63782.0,63774.0,2.27949882]
[1724656395927,0.00090751,63782.0,63774.0,2.29349882]
[1724656396130,0.00090751,63782.0,63774.0,2.30749882]
[1724656396554,0.00090751,63782.0,63774.0,2.31407659]
[1724656396762,0.00090751,63782.0,63774.0,2.30007659]
[1724656396976,0.00090751,63782.0,63774.0,2.36105276]
[1724656397182,0.00090751,63782.0,63774.0,2.31407659]
[1724656397386,0.00090751,63782.0,63774.0,2.93965659]
[1724656397799,0.00090751,63782.0,63774.0,3.11965659]
[1724656398214,0.00090751,63782.0,63774.0,3.43326359]
[1724656398442,0.00090751,63782.0,63774.0,3.63365312]
[1724656398642,0.00056324,63780.0,63779.0,1.612119]
[1724656398851,0.00056324,63780.0,63779.0,4.15101501]
[1724656399057,0.00056324,63780.0,63779.0,4.2213426]
[1724656399256,0.00056324,63780.0,63779.0,4.5349246]
[1724656399478,0.00056324,63780.0,63779.0,4.46459701]
[1724656399678,0.1661,63796.0,63794.0,0.001]
[1724656399851,0.1889,63797.0,63796.0,0.156749]
[1724656400059,0.1889,63797.0,63796.0,1.43317501]
[1724656400267,0.1889,63797.0,63796.0,1.74667401]
[1724656400472,0.00947501,63799.0,63798.0,1.097211]
[1724656400659,0.00947501,63799.0,63798.0,1.27738901]
[1724656400861,0.00947501,63799.0,63798.0,1.74761901]
[1724656402474,0.00947501,63799.0,63798.0,1.75407251]
[1724656402679,0.00947501,63799.0,63798.0,1.76807251]
[1724656403177,0.00947501,63799.0,63798.0,1.75407251]
[1724656403341,0.00947501,63799.0,63798.0,1.78207251]
[1724656403784,0.00947501,63799.0,63798.0,2.09556151]
[1724656404494,0.00947501,63799.0,63798.0,2.28646151]
[1724656405665,0.00947501,63799.0,63798.0,2.25846151]
[1724656406076,0.00947501,63799.0,63798.0,2.28646151]
[1724656406274,0.00947501,63799.0,63798.0,2.27246151]
[1724656406648,0.00947501,63799.0,63798.0,2.06756151]
[1724656406801,0.00947501,63799.0,63798.0,1.78207251]
[1724656407001,0.00947501,63799.0,63798.0,1.76807251]
[1724656407997,0.00947501,63799.0,63798.0,2.08156151]
[1724656408197,0.00947501,63799.0,63798.0,1.76807251]
[1724656408425,0.00947501,63799.0,63798.0,1.75407251]
[1724656408601,0.00947501,63799.0,63798.0,2.08156151]
[1724656408971,0.00947501,63799.0,63798.0,2.06756151]
[1724656409249,0.00947501,63799.0,63798.0,2.41866151]
[1724656409402,0.00907501,63802.0,63801.0,1.098159]
[1724656409603,0.00907501,63802.0,63801.0,2.53447701]
[1724656409830,0.00907501,63802.0,63801.0,2.51754901]
[1724656410043,0.00907501,63802.0,63801.0,2.83102301]
[1724656410591,0.00907501,63802.0,63801.0,2.66814301]
[1724656410793,0.00907501,63802.0,63801.0,2.98161701]
[1724656411057,0.3504,63811.0,63802.0,1.41161]
[1724656411311,0.00907501,63818.0,63817.0,0.001]
[1724656411312,0.00834401,63818.0,63817.0,0.001]
[1724656411566,0.46876099,63820.0,63819.0,1.097851]
[1724656411840,0.00874401,63822.0,63821.0,0.78344]
[1724656412080,0.00874401,63822.0,63821.0,1.25299401]
[1724656412323,0.00874401,63822.0,63821.0,1.27599401]
[1724656412324,0.21064401,63822.0,63821.0,1.27599401]
[1724656413057,0.21064401,63822.0,63821.0,1.74605401]
[1724656413304,0.21064401,63822.0,63821.0,1.75805401]
[1724656413542,0.00874401,63822.0,63821.0,1.76549965]
[1724656414038,0.00874401,63822.0,63821.0,1.77849965]
[1724656414281,0.00874401,63822.0,63821.0,1.76549965]
[1724656415230,0.00874401,63822.0,63821.0,1.75349965]
[1724656415473,0.00874401,63822.0,63821.0,1.76549965]
[1724656415673,0.00874401,63822.0,63821.0,1.77849965]
[1724656417260,0.20014401,63822.0,63821.0,1.77849965]
[1724656419009,0.20014401,63822.0,63821.0,1.44112365]
[1724656419010,0.37494401,63822.0,63821.0,1.44112365]
[1724656420948,0.37494401,63822.0,63821.0,1.46412365]
[1724656421587,0.37494401,63822.0,63821.0,1.77849965]
[1724656421791,0.00874401,63822.0,63821.0,1.77849965]
[1724656422211,0.1723,63829.0,63828.0,0.156671]
[1724656422430,0.1723,63829.0,63828.0,1.11920101]
[1724656422645,0.1723,63832.0,63828.0,0.64918801]
[1724656422848,0.1723,63832.0,63831.0,0.783317]
[1724656423064,0.1723,63832.0,63831.0,1.74681201]
[1724656424999,0.1723,63832.0,63831.0,1.09615801]
[1724656425209,0.3708,63832.0,63831.0,1.09615801]
[1724656425417,0.3708,63832.0,63831.0,1.40948501]
[1724656425596,0.3708,63832.0,63831.0,1.42148501]
[1724656426007,0.3708,63832.0,63831.0,1.40948501]
[1724656426275,0.3708,63832.0,63831.0,1.74781201]
[1724656426482,0.3708,63832.0,63831.0,1.77081201]
[1724656426887,0.3708,63832.0,63831.0,1.45748501]
[1724656427539,0.3708,63832.0,63831.0,1.77081201]
[1724656427748,0.3708,63832.0,63831.0,1.75781201]
[1724656428935,0.3708,63832.0,63831.0,1.43248501]
[1724656429137,0.3708,63832.0,63831.0,1.44548501]
[1724656429547,0.3708,63832.0,63831.0,1.75881201]
[1724656429939,0.3708,63832.0,63831.0,1.77181201]
[1724656430309,0.3708,63832.0,63831.0,1.75881201]
[1724656430506,0.3708,63832.0,63831.0,1.74581201]
[1724656430826,0.3708,63832.0,63831.0,1.45948501]
[1724656431008,0.3708,63832.0,63831.0,1.77281201]
[1724656431205,0.3708,63832.0,63831.0,1.45948501]
[1724656431497,0.3708,63832.0,63831.0,1.77281201]
[1724656433019,0.3708,63832.0,63831.0,1.75881201]
[1724656433334,0.3708,63832.0,63831.0,1.77281201]
[1724656433761,0.3708,63832.0,63831.0,1.75981201]
[1724656433992,0.3708,63832.0,63831.0,1.77281201]
[1724656434634,0.3708,63832.0,63831.0,1.74581201]
[1724656434972,0.3708,63832.0,63831.0,1.75881201]
[1724656435386,0.3708,63832.0,63831.0,1.43248501]
[1724656436222,0.37170751,63832.0,63831.0,1.43248501]
[1724656436624,0.37170751,63832.0,63831.0,1.44648501]
[1724656436883,0.37170751,63832.0,63831.0,1.74581201]
[1724656437095,0.37170751,63832.0,63831.0,1.75881201]
[1724656437305,0.37170751,63832.0,63831.0,1.77281201]
[1724656437720,0.37170751,63832.0,63831.0,1.45948501]
[1724656438493,0.37170751,63832.0,63831.0,1.77281201]
[1724656439727,0.37151894,63832.0,63831.0,1.77281201]
[1724656440167,0.37151894,63832.0,63831.0,1.45948501]
[1724656440801,0.37151894,63832.0,63831.0,1.77281201]
[1724656441788,0.00090751,63832.0,63831.0,1.75981201]
[1724656442600,0.1,63833.0,63832.0,0.783305]
[1724656442601,0.09590751,63833.0,63832.0,0.783305]
[1724656442797,0.09590751,63833.0,63832.0,1.43246301]
[1724656442986,0.09590751,63833.0,63832.0,1.74578501]
[1724656444034,0.09590751,63833.0,63832.0,1.77278501]
[1724656444520,0.09590751,63833.0,63832.0,1.87079185]
[1724656446409,0.09590751,63833.0,63832.0,1.85779185]
[1724656446613,0.09590751,63833.0,63832.0,1.87179185]
[1724656446917,0.09590751,63833.0,63832.0,1.85779185]
[1724656447272,0.09590751,63833.0,63832.0,1.87179185]
[1724656447477,0.09590751,63833.0,63832.0,1.84379185]
[1724656447885,0.09590751,63833.0,63832.0,1.87179185]
[1724656448513,0.09681502,63833.0,63832.0,1.87179185]
[1724656448713,0.09681502,63833.0,63832.0,1.85779185]
[1724656449337,0.09681502,63833.0,63832.0,1.84379185]
[1724656449710,0.09681502,63833.0,63832.0,1.85779185]
[1724656450803,0.09681502,63833.0,63832.0,1.87179185]
[1724656451031,0.09681502,63833.0,63832.0,1.85779185]
[1724656451205,0.09681502,63833.0,63832.0,1.87179185]
[1724656451545,0.47231502,63833.0,63832.0,1.87179185]
[1724656451756,0.47231502,63833.0,63832.0,1.46046301]
[1724656452176,0.47231502,63833.0,63832.0,1.77378501]
[1724656454313,0.47231502,63833.0,63832.0,1.87179188]
[1724656454515,0.09681502,63833.0,63832.0,1.87179188]
[1724656460121,0.09681502,63833.0,63832.0,1.84379188]
[1724656460465,0.09681502,63833.0,63832.0,1.85779188]
[1724656460868,0.46031502,63833.0,63832.0,1.84379188]
[1724656461069,0.46031502,63833.0,63832.0,1.54446988]
[1724656461295,0.46031502,63833.0,63832.0,1.43246301]
[1724656461726,0.46031502,63833.0,63832.0,1.44646301]
[1724656461931,0.46031502,63833.0,63832.0,1.75978501]
[1724656462143,0.46031502,63833.0,63832.0,1.43246301]
[1724656462931,0.46031502,63833.0,63832.0,1.44646301]
[1724656463768,0.46031502,63833.0,63832.0,1.46046301]
[1724656463971,0.46031502,63833.0,63832.0,1.44646301]
[1724656464181,0.46031502,63833.0,63832.0,1.46046301]
[1724656464385,0.46031502,63833.0,63832.0,1.77378501]
[1724656464638,0.46031502,63833.0,63832.0,1.44646301]
[1724656465431,0.46031502,63833.0,63832.0,1.46046301]
[1724656467423,0.46031502,63833.0,63832.0,1.77378501]
[1724656467648,0.46031502,63833.0,63832.0,1.46046301]
[1724656467932,0.46031502,63833.0,63832.0,1.77378501]
[1724656468140,0.46031502,63833.0,63832.0,1.46046301]
[1724656468372,0.46031502,63833.0,63832.0,1.77378501]
[1724656469511,0.20010751,63833.0,63832.0,1.87179359]
[1724656470136,0.00090751,63833.0,63832.0,1.87179359]
[1724656472221,0.00090751,63833.0,63832.0,1.95952714]
[1724656474829,0.00090751,63833.0,63832.0,2.49134914]
[1724656475255,0.00090751,63833.0,63832.0,2.56183622]
[1724656475462,0.00090751,63833.0,63832.0,2.65834914]
[1724656475895,0.00090751,63833.0,63832.0,2.34502714]
[1724656476316,0.00090751,63833.0,63832.0,2.41551052]
[1724656476739,0.00090751,63833.0,63832.0,2.72883252]
[1724656478418,0.00090751,63833.0,63832.0,2.72882709]
[1724656478622,0.00090751,63833.0,63832.0,2.41550509]
[1724656479811,0.00090751,63833.0,63832.0,2.72882709]
[1724656480043,0.00090751,63833.0,63832.0,2.75231336]
[1724656480262,0.00090751,63833.0,63832.0,2.65834914]
[1724656480498,0.00090751,63833.0,63832.0,2.77581239]
[1724656481212,0.00090751,63833.0,63832.0,2.65834914]
[1724656481883,0.00090751,63833.0,63832.0,2.65934914]
[1724656482161,0.00090751,63833.0,63832.0,2.97267114]
[1724656482411,0.00090751,63833.0,63832.0,2.65934914]
[1724656482895,0.00947501,63839.0,63838.0,1.794418]
[1724656483160,0.00928646,63839.0,63838.0,2.74586668]
[1724656483392,0.00928646,63839.0,63838.0,2.62845314]
[1724656483869,0.00928646,63839.0,63838.0,2.74586668]
[1724656484141,0.00928646,63839.0,63838.0,2.75986668]
[1724656484375,0.00928646,63839.0,63838.0,3.07315968]
[1724656484876,0.00928646,63839.0,63838.0,3.08715968]
[1724656485136,0.00928646,63839.0,63838.0,3.07957726]
[1724656485406,0.00928646,63839.0,63838.0,3.92339672]
[1724656485407,0.00907501,63839.0,63838.0,3.92339672]
[1724656485670,0.3838,63855.0,63854.0,1.096249]
[1724656486006,0.3838,63855.0,63854.0,1.83215556]
[1724656486214,0.3838,63855.0,63854.0,1.74524701]
[1724656487460,0.3838,63855.0,63854.0,1.75924701]
[1724656487707,0.0004,63859.0,63858.0,1.096179]
[1724656487939,0.0004,63859.0,63858.0,1.74514701]
[1724656489179,0.3673,63859.0,63858.0,1.74514701]
[1724656489698,0.3673,63859.0,63858.0,1.75914701]
[1724656490108,0.3673,63859.0,63858.0,1.7645164]
[1724656490324,0.3673,63859.0,63858.0,1.7655164]
[1724656490732,0.3673,63859.0,63858.0,1.7795164]
[1724656491541,0.3673,63859.0,63858.0,1.7655164]
[1724656493019,0.3673,63859.0,63858.0,1.7795164]
[1724656493938,0.3673,63859.0,63858.0,1.7655164]
[1724656495987,0.36820751,63859.0,63858.0,1.4663224]
[1724656497636,0.36820751,63859.0,63858.0,0.49779]
[1724656497850,0.52480151,63859.0,63858.0,0.49779]
[1724656498060,0.83799051,63859.0,63858.0,0.49779]
[1724656498693,0.36820751,63859.0,63858.0,0.48379]
[1724656498912,0.36820751,63859.0,63858.0,0.48579]
[1724656499553,0.36820751,63859.0,63858.0,0.79656501]
[1724656499751,0.36820751,63859.0,63858.0,0.78456501]
[1724656499970,0.36820751,63859.0,63858.0,1.12936088]
[1724656500377,0.36820751,63859.0,63858.0,0.65096801]
[1724656500617,0.36820751,63859.0,63858.0,0.81056501]
[1724656500821,0.36820751,63859.0,63858.0,1.43695301]
[1724656501038,0.36820751,63859.0,63858.0,1.43395301]
[1724656501295,0.36820751,63859.0,63858.0,1.43895301]
[1724656501937,0.36820751,63859.0,63858.0,1.43695301]
[1724656502168,0.36820751,63859.0,63858.0,1.43495301]
[1724656502792,0.36820751,63859.0,63858.0,1.43195301]
[1724656503130,0.36820751,63859.0,63858.0,1.44195301]
[1724656503743,0.00130751,63859.0,63858.0,1.75514701]
[1724656504174,0.00130751,63859.0,63858.0,1.76414701]
[1724656504574,0.00130751,63859.0,63858.0,1.91774701]
[1724656505231,0.00130751,63859.0,63858.0,1.92874701]
[1724656505384,0.00130751,63859.0,63858.0,1.76614701]
[1724656513930,0.00130751,63859.0,63858.0,2.07934101]
[1724656514131,0.00130751,63859.0,63858.0,2.28224101]
[1724656514313,0.00130751,63859.0,63858.0,2.35919966]
[1724656514727,0.00130751,63859.0,63858.0,2.56279966]
[1724656514935,0.00130751,63859.0,63858.0,2.54879966]